bitfinex/quotes_ETHUSD_20250810
["timestamp","ask_amount","ask_price","bid_price","bid_amount"]
[1754844009266,9.32358304,4241.6,4241.5,0.001]
[1754844009410,39.32358304,4241.6,4241.5,0.001]
[1754844011721,5.90765648,4241.5,4241.3,1e-08]
[1754844011926,20.67648306,4241.4,4241.3,1e-08]
[1754844012230,41.61738306,4241.4,4241.3,1e-08]
[1754844012633,41.73498306,4241.4,4241.3,1e-08]
[1754844013432,41.73498306,4241.4,4240.9,1e-08]
[1754844013433,2.90793444,4241.0,4240.9,1e-08]
[1754844013729,5.90810125,4240.7,4240.6,1e-08]
[1754844013939,40.37797224,4240.7,4240.6,1e-08]
[1754844014137,40.81102395,4240.7,4240.6,1e-08]
[1754844014341,5.90815686,4240.6,4240.5,1e-08]
[1754844014536,36.84905686,4240.6,4240.5,1e-08]
[1754844014728,39.10337967,4240.6,4240.5,1e-08]
[1754844015159,39.32329938,4240.6,4240.5,1e-08]
[1754844015375,42.26587967,4240.6,4240.5,1e-08]
[1754844016577,42.72837967,4240.6,4240.5,1e-08]
[1754844017035,42.94802322,4240.6,4240.5,1e-08]
[1754844017371,42.72837967,4240.6,4240.5,1e-08]
[1754844020740,42.71187967,4240.6,4240.5,1e-08]
[1754844021871,42.71187967,4240.6,4240.2,0.001]
[1754844021872,9.7776221,4240.3,4240.2,1e-08]
[1754844022084,43.8191221,4240.3,4240.2,1e-08]
[1754844022236,36.3258237,4240.3,4240.2,1e-08]
[1754844022440,40.4235237,4240.3,4240.2,1e-08]
[1754844022641,0.55,4239.9,4239.6,0.04]
[1754844022847,36.65014619,4239.9,4239.6,0.04]
[1754844023051,38.31798157,4239.9,4239.6,0.04]
[1754844023691,37.87098157,4239.9,4239.6,0.04]
[1754844023859,40.87098157,4239.9,4239.6,0.04]
[1754844024583,41.31798157,4239.9,4239.6,0.04]
[1754844026386,0.55,4239.7,4239.6,0.04]
[1754844026558,39.42932281,4239.7,4239.6,0.04]
[1754844026755,41.78798026,4239.7,4239.6,0.04]
[1754844026985,42.26168026,4239.7,4239.6,0.04]
[1754844029005,38.16298026,4239.7,4239.6,0.04]
[1754844029163,41.78798026,4239.7,4239.6,0.04]
[1754844029671,8.78798026,4239.7,4239.6,0.04]
[1754844029876,6.53365745,4239.7,4239.6,0.5101]
[1754844030087,19.53365745,4239.7,4239.6,0.5101]
[1754844030289,39.53365745,4239.7,4239.6,0.5101]
[1754844030489,9.53365745,4239.7,4239.6,0.5101]
[1754844032993,9.53365745,4239.7,4239.6,0.04]
[1754844033305,10.80935467,4239.7,4239.6,0.04]
[1754844034291,40.80935467,4239.7,4239.6,0.04]
[1754844034466,41.28305467,4239.7,4239.6,0.04]
[1754844036903,42.45676366,4239.7,4239.6,0.04]
[1754844037703,42.00976366,4239.7,4239.6,0.04]
[1754844038702,42.00976366,4239.7,4239.6,0.041]
[1754844039288,42.45676366,4239.7,4239.6,0.041]
[1754844039874,42.45676366,4239.7,4239.6,1e-08]
[1754844040121,49.744804,4239.7,4239.6,1e-08]
[1754844040613,46.119804,4239.7,4239.6,1e-08]
[1754844040802,50.59191455,4239.7,4239.6,1e-08]
[1754844041185,49.744804,4239.7,4239.6,1e-08]
[1754844041499,53.744804,4239.7,4239.6,1e-08]
[1754844041702,49.199104,4239.7,4239.6,1e-08]
[1754844041887,50.63805366,4239.7,4239.6,1e-08]
[1754844042091,18.11600678,4239.7,4239.6,0.47010001]
[1754844042294,17.99872984,4239.7,4239.6,0.47010001]
[1754844042521,20.99872984,4239.7,4239.6,0.47010001]
[1754844042729,21.54872984,4239.7,4239.6,0.92150001]
[1754844042879,17.54872984,4239.7,4239.6,0.92150001]
[1754844043079,17.54872984,4239.7,4239.6,0.47010001]
[1754844043777,3.84507239,4239.7,4239.6,0.47010001]
[1754844043987,6.84572267,4239.7,4239.6,1.03910001]
[1754844044210,7.35247239,4239.7,4239.6,1.03910001]
[1754844044420,7.90247239,4239.7,4239.6,1.03910001]
[1754844045186,3.72747239,4239.7,4239.6,1.03910001]
[1754844045381,6.625,4239.7,4239.6,1.03910001]
[1754844046721,6.625,4239.7,4239.6,3.39781309]
[1754844046923,3.625,4239.7,4239.6,3.85598142]
[1754844047091,3.625,4239.7,4239.6,3.84882061]
[1754844050127,3.625,4239.7,4239.6,1.49010753]
[1754844050824,2.90871308,4239.6,4239.5,0.708551]
[1754844051185,2.90871308,4239.6,4239.4,0.001]
[1754844051186,2.90876872,4239.5,4239.4,0.001]
[1754844051386,6.53276872,4239.5,4239.4,0.001]
[1754844052423,10.03226872,4239.5,4239.4,0.001]
[1754844053630,10.7614347,4239.5,4239.4,0.001]
[1754844053785,12.51772386,4239.5,4239.4,0.001]
[1754844055119,42.51772386,4239.5,4239.4,0.001]
[1754844056921,42.63632386,4239.5,4239.4,0.001]
[1754844058126,42.63632279,4239.5,4239.4,0.001]
[1754844059901,42.20392279,4239.5,4239.4,0.001]
[1754844061533,5.57945678,4239.5,4239.4,0.4491]
[1754844061827,9.53376872,4239.5,4239.4,0.4491]
[1754844062004,3.0,4239.5,4239.4,0.5667]
[1754844062205,6.625,4239.5,4239.4,1.0181]
[1754844062395,3.625,4239.5,4239.4,1.0181]
[1754844063002,4.175,4239.5,4239.4,1.0181]
[1754844064733,6.53376872,4239.5,4239.4,0.5667]
[1754844065440,6.53376872,4239.5,4239.4,0.001]
[1754844065743,7.42321244,4239.5,4239.4,0.001]
[1754844065896,17.92271244,4239.5,4239.4,0.001]
[1754844066102,47.92271244,4239.5,4239.4,0.001]
[1754844066297,7.92271244,4239.5,4239.4,0.001]
[1754844066512,17.92271244,4239.5,4239.4,0.001]
[1754844066716,37.92271244,4239.5,4239.4,0.001]
[1754844066922,38.57573854,4239.5,4239.4,0.001]
[1754844067324,38.14333854,4239.5,4239.4,0.001]
[1754844068530,38.57573854,4239.5,4239.4,0.001]
[1754844068822,41.57573854,4239.5,4239.4,0.001]
[1754844069147,42.0840438,4239.5,4239.4,0.001]
[1754844070249,42.20205104,4239.5,4239.4,0.001]
[1754844070422,42.20205104,4239.5,4239.4,1e-08]
[1754844072927,5.9092139,4238.7,4237.8,0.09452]
[1754844073123,40.26214526,4238.7,4237.7,0.4481]
[1754844073535,41.31164526,4238.7,4237.7,0.4481]
[1754844074448,5.90926957,4238.6,4237.7,0.4481]
[1754844074652,37.57010093,4238.6,4237.7,0.4481]
[1754844074826,38.67201844,4238.6,4237.7,0.4481]
[1754844075225,38.67201844,4238.6,4237.3,0.1176]
[1754844075537,38.67201844,4238.6,4236.9,0.545936]
[1754844075538,38.67201844,4238.6,4237.4,0.4481]
[1754844076259,42.41871197,4238.6,4237.4,0.4481]
[1754844076724,2.35932523,4238.5,4237.4,0.4481]
[1754844076925,41.19415659,4238.5,4237.4,0.4481]
[1754844077134,43.51119727,4238.5,4237.4,0.4481]
[1754844077972,5.90938089,4238.4,4238.3,1e-08]
[1754844078127,40.74751225,4238.4,4238.3,1e-08]
[1754844078327,40.86511225,4238.4,4238.3,1e-08]
[1754844078530,41.96702976,4238.4,4238.3,1e-08]
[1754844079362,42.42132976,4238.4,4238.3,1e-08]
[1754844080563,49.37070366,4238.4,4238.3,1e-08]
[1754844080724,49.59099089,4238.4,4238.3,1e-08]
[1754844081235,50.22638853,4238.4,4238.3,1e-08]
[1754844081432,49.59099089,4238.4,4238.3,1e-08]
[1754844083064,45.02749089,4238.4,4238.3,1e-08]
[1754844083270,48.65249089,4238.4,4238.3,1e-08]
[1754844083764,52.65249089,4238.4,4238.3,1e-08]
[1754844084266,52.65249089,4238.4,4238.3,0.42900001]
[1754844084652,52.65249089,4238.4,4238.3,1e-08]
[1754844084858,48.65249089,4238.4,4238.3,1e-08]
[1754844086437,49.13669089,4238.4,4238.3,1e-08]
[1754844088170,54.80469089,4238.4,4238.3,1e-08]
[1754844088540,54.32049089,4238.4,4238.3,1e-08]
[1754844090088,50.14549089,4238.4,4238.3,1e-08]
[1754844090269,52.16026812,4238.4,4238.3,0.42900001]
[1754844090435,52.71026812,4238.4,4238.3,0.42900001]
[1754844090639,52.48998089,4238.4,4238.3,0.42900001]
[1754844092474,52.48898089,4238.4,4238.3,0.42900001]
[1754844092876,22.48898089,4238.4,4238.3,0.42900001]
[1754844093376,22.70916767,4238.4,4238.3,0.42900001]
[1754844093581,22.70916767,4238.4,4238.3,0.88040001]
[1754844093766,16.17578678,4238.4,4238.3,0.88040001]
[1754844093952,16.462,4238.4,4238.3,0.88040001]
[1754844094150,21.82138089,4238.4,4238.3,0.88040001]
[1754844094357,22.37138089,4238.4,4238.3,0.88040001]
[1754844094694,22.37138089,4238.4,4238.3,0.42900001]
[1754844094856,22.37138089,4238.4,4238.3,1e-08]
[1754844094857,24.80602157,4238.4,4238.3,1e-08]
[1754844095257,24.80602157,4238.4,4238.3,0.42900001]
[1754844096241,54.80602157,4238.4,4238.3,1e-08]
[1754844096445,55.02653827,4238.4,4238.3,1e-08]
[1754844097263,52.70949759,4238.4,4238.3,0.42900001]
[1754844097441,49.08549759,4238.4,4238.3,0.42900001]
[1754844097647,52.70949759,4238.4,4238.3,0.42900001]
[1754844097973,18.86498089,4238.4,4238.3,0.42900001]
[1754844098383,22.37138089,4238.4,4238.3,0.88040001]
[1754844098682,18.74738089,4238.4,4238.3,0.88040001]
[1754844098886,22.37138089,4238.4,4238.3,0.88040001]
[1754844099075,22.37138089,4238.4,4238.3,0.42900001]
[1754844100100,16.388,4238.4,4238.3,0.42900001]
[1754844100259,6.218,4238.4,4238.3,0.99800001]
[1754844100465,9.292,4238.4,4238.3,1.33375371]
[1754844101948,9.292,4238.4,4238.3,0.99800001]
[1754844102143,12.20138089,4238.4,4238.3,1e-08]
[1754844102350,9.842,4238.4,4238.3,0.99800001]
[1754844102655,0.002,4238.6,4238.5,2.35932523]
[1754844102881,3.626,4238.6,4238.5,2.35932523]
[1754844103180,3.151,4238.6,4238.5,3.31485998]
[1754844103373,3.624,4238.6,4238.5,3.31485998]
[1754844103677,0.55,4239.1,4238.7,2.3592114]
[1754844103875,0.55,4239.1,4238.6,2.78825798]
[1754844104075,3.624,4239.0,4238.7,0.429]
[1754844104470,3.624,4239.0,4238.9,0.1176]
[1754844104673,3.624,4239.0,4238.9,0.5466]
[1754844105279,0.002,4239.5,4238.9,0.5466]
[1754844105482,3.623,4239.4,4239.0,0.429]
[1754844105683,0.002,4239.5,4239.4,0.1176]
[1754844105884,5.98376872,4239.5,4239.4,0.1176]
[1754844106190,6.53376872,4239.5,4239.4,0.1176]
[1754844106392,4.175,4239.5,4239.4,0.1176]
[1754844106594,0.002,4239.5,4239.4,0.5466]
[1754844106754,3.625,4239.5,4239.4,0.5466]
[1754844107068,0.002,4239.5,4239.4,0.5466]
[1754844107598,3.625,4239.5,4239.4,0.5466]
[1754844108361,0.002,4239.5,4239.4,0.5466]
[1754844108552,3.625,4239.5,4239.4,0.5466]
[1754844108782,3.625,4239.5,4239.4,0.83715261]
[1754844108986,0.002,4239.5,4239.4,0.83715261]
[1754844109222,3.625,4239.5,4239.4,0.83715261]
[1754844109361,3.625,4239.5,4239.4,0.5466]
[1754844109762,5.98376872,4239.5,4239.4,0.1176]
[1754844110066,0.002,4239.5,4239.4,0.1176]
[1754844110389,3.624,4239.5,4239.4,0.5516]
[1754844110597,3.624,4239.5,4239.4,0.1176]
[1754844111394,6.53276872,4239.5,4239.4,0.1176]
[1754844111690,4.174,4239.5,4239.4,0.1176]
[1754844112290,0.552,4239.5,4239.4,0.5516]
[1754844112485,3.624,4239.5,4239.4,0.5516]
[1754844112659,3.624,4239.5,4239.4,2.91042436]
[1754844112858,3.624,4239.5,4239.4,3.43735698]
[1754844113072,3.624,4239.5,4239.4,1.07853262]
[1754844113270,0.002,4239.5,4239.4,2.91042436]
[1754844113670,3.624,4239.5,4239.4,2.91042436]
[1754844114781,3.624,4239.5,4239.4,2.47642436]
[1754844114974,3.624,4239.5,4239.4,0.1176]
[1754844115170,3.624,4239.5,4239.4,2.91042436]
[1754844115503,3.624,4239.5,4239.4,3.43736001]
[1754844115706,0.002,4239.5,4239.4,3.43736001]
[1754844116007,3.624,4239.5,4239.4,0.64453565]
[1754844116177,3.624,4239.5,4239.4,0.1176]
[1754844116376,4.1016,4239.5,4239.4,0.1176]
[1754844116770,3.624,4239.5,4239.4,0.1176]
[1754844117191,0.002,4239.5,4239.4,0.1176]
[1754844117366,3.624,4239.5,4239.4,0.1176]
[1754844117773,0.002,4239.5,4239.4,0.1176]
[1754844118068,3.623,4239.5,4239.4,0.1176]
[1754844119290,3.623,4239.5,4239.4,0.36525338]
[1754844119493,0.002,4239.5,4239.4,0.36525338]
[1754844119695,3.623,4239.5,4239.4,0.36525338]
[1754844119895,3.623,4239.5,4239.4,0.79925338]
[1754844120107,3.623,4239.5,4239.4,2.91042436]
[1754844120274,0.002,4239.5,4239.4,2.91042436]
[1754844121798,0.002,4239.5,4239.4,2.9340126]
[1754844122011,0.002,4239.5,4239.4,2.91042436]
[1754844122312,0.002,4239.5,4239.4,0.1176]
[1754844122672,0.4796,4239.5,4239.4,0.1176]
[1754844123603,0.002,4239.5,4239.4,0.1176]
[1754844124782,0.002,4239.5,4239.4,2.72408263]
[1754844125103,3.623,4239.5,4239.4,3.04048263]
[1754844125302,3.623,4239.5,4239.4,3.15808263]
[1754844126202,0.002,4239.5,4239.4,3.15808263]
[1754844127875,0.002,4239.5,4239.4,0.36525827]
[1754844128076,0.002,4239.5,4239.4,2.72408263]
[1754844128477,0.002,4239.5,4239.2,2.35893114]
[1754844128677,0.4776,4239.4,4239.2,2.35893114]
[1754844129481,0.4776,4239.4,4238.6,0.094477]
[1754844129993,0.4776,4239.4,4238.7,2.3592139]
[1754844130296,0.4776,4239.4,4239.2,2.35888218]
[1754844130697,0.4776,4239.4,4239.1,2.35899129]
[1754844131306,0.4776,4239.3,4238.7,2.3592139]
[1754844131509,0.4776,4239.3,4238.8,0.28876909]
[1754844131744,4.0976,4239.2,4238.8,0.28876909]
[1754844131912,3.62,4239.2,4239.0,2.35904694]
[1754844132212,3.62,4239.2,4239.1,2.35899129]
[1754844132402,3.62,4239.2,4239.0,2.35904159]
[1754844132582,4.0976,4239.2,4239.0,2.35904159]
[1754844132783,4.0976,4239.2,4238.9,2.35910259]
[1754844133008,4.0976,4239.2,4239.0,2.35904694]
[1754844133215,3.62,4239.2,4239.1,2.35899129]
[1754844135914,4.0976,4239.2,4239.1,2.35899129]
[1754844137301,4.5311,4239.2,4239.0,2.35903977]
[1754844137519,0.907,4239.1,4239.0,2.35903977]
[1754844137720,0.907,4239.1,4238.9,0.23591026]
[1754844137721,0.907,4239.1,4238.9,2.59500787]
[1754844138022,0.4656,4239.0,4238.9,2.59500787]
[1754844138489,0.4656,4239.0,4238.9,2.71260787]
[1754844139086,3.62,4239.2,4239.1,2.35899129]
[1754844142239,4.0856,4239.2,4239.1,2.35899129]
[1754844143724,4.0856,4239.2,4238.9,2.71260787]
[1754844143725,4.0856,4239.2,4239.0,2.35903215]
[1754844143920,0.4656,4239.1,4239.0,2.35903215]
[1754844145133,3.62,4239.2,4239.1,2.35899129]
[1754844146705,0.002,4239.5,4239.4,2.35882436]
[1754844147334,0.002,4239.5,4239.4,2.93532436]
[1754844147514,0.002,4239.5,4239.4,2.9589126]
[1754844147715,0.002,4239.5,4239.4,3.82910535]
[1754844148410,0.002,4239.5,4239.4,3.37020535]
[1754844148614,0.002,4239.5,4239.4,6.99020535]
[1754844148818,0.002,4239.5,4239.4,7.54356035]
[1754844151626,0.002,4239.5,4239.4,7.08466035]
[1754844151942,0.002,4239.5,4239.4,7.08366035]
[1754844152147,0.002,4239.5,4239.4,7.54256035]
[1754844152438,0.002,4239.5,4239.4,7.08366035]
[1754844152941,0.002,4239.5,4239.4,7.54256035]
[1754844153557,0.002,4239.5,4239.4,10.54256035]
[1754844153709,1e-08,4239.5,4239.4,10.54256035]
[1754844153908,0.002,4239.9,4239.8,2.35860182]
[1754844154140,0.002,4239.9,4239.8,6.53704801]
[1754844154315,0.002,4240.0,4239.9,5.35854619]
[1754844154518,0.002,4240.0,4239.9,5.81744619]
[1754844154723,0.002,4240.6,4240.3,2.3583237]
[1754844154918,0.002,4240.6,4240.3,5.9773237]
[1754844155236,0.002,4240.6,4240.3,7.43328601]
[1754844158154,1e-08,4240.5,4240.4,2.35826808]
[1754844158317,1e-08,4240.5,4240.4,2.84075076]
[1754844158829,1e-08,4240.5,4240.4,5.84075076]
[1754844159023,1e-08,4240.5,4240.4,5.81716808]
[1754844159232,1e-08,4240.5,4240.4,7.34160673]
[1754844162337,1e-08,4240.5,4240.4,7.43603573]
[1754844163619,1e-08,4240.5,4240.4,6.97713573]
[1754844169551,0.002,4240.6,4240.4,6.97713573]
[1754844169851,1e-08,4240.6,4240.5,9.40801247]
[1754844170064,1e-08,4240.6,4240.5,10.41343352]
[1754844170732,1e-08,4240.6,4240.5,10.50784852]
[1754844171345,0.042,4240.9,4240.6,2.35815686]
[1754844171545,0.042,4240.9,4240.7,6.617]
[1754844171742,0.042,4240.9,4240.7,7.82865929]
[1754844171958,0.042,4240.9,4240.7,10.28117654]
[1754844175353,0.002,4241.0,4240.8,5.35804565]
[1754844175558,0.002,4241.0,4240.9,8.97399004]
[1754844175724,0.002,4241.0,4240.9,10.28108114]
[1754844175925,0.002,4241.0,4240.9,10.71388114]
[1754844177657,0.002,4241.0,4240.9,10.80829614]
[1754844178838,0.002,4241.0,4240.9,10.37549614]
[1754844179248,0.002,4241.4,4241.3,2.35776766]
[1754844179560,0.002,4241.4,4241.3,6.5331221]
[1754844179859,0.002,4241.4,4241.3,6.62714443]
[1754844180227,0.9446,4241.4,4241.3,3.01114443]
[1754844180432,0.9446,4241.4,4241.3,6.62714443]
[1754844180640,0.4818,4241.4,4241.3,6.62714443]
[1754844181353,0.9446,4241.4,4241.3,6.62714443]
[1754844181668,0.9446,4241.4,4241.3,3.01114443]
[1754844181965,0.9446,4241.4,4241.3,6.09036766]
[1754844182936,0.002,4241.4,4241.3,6.09036766]
[1754844183141,1e-08,4241.5,4241.4,5.35771207]
[1754844183441,0.002,4242.2,4242.1,2.35732302]
[1754844183641,0.002,4242.2,4242.1,6.86139506]
[1754844184148,0.4818,4242.2,4242.1,6.86139506]
[1754844184663,0.4818,4242.2,4242.1,3.24639506]
[1754844184841,0.9446,4242.2,4242.1,6.86139506]
[1754844185239,0.9446,4242.2,4242.1,2.47492302]
[1754844185553,0.9446,4242.2,4242.1,6.08992302]
[1754844185748,0.9446,4242.2,4242.1,2.47492302]
[1754844185949,0.9446,4242.2,4242.1,0.1176]
[1754844192358,0.4818,4242.2,4242.1,2.47492302]
[1754844192595,0.9446,4242.2,4242.1,0.1176]
[1754844194279,0.9446,4242.2,4242.1,2.47492302]
[1754844195092,0.9446,4242.2,4242.1,0.1176]
[1754844196394,3.85186745,4242.2,4242.1,0.1176]
[1754844196797,7.46586745,4242.2,4242.1,0.1176]
[1754844196994,7.68653244,4242.2,4242.1,0.1176]
[1754844197394,10.68653244,4242.2,4242.1,0.1176]
[1754844197603,10.68653244,4242.2,4240.9,0.708214]
[1754844197604,2.35768279,4241.5,4240.9,0.708214]
[1754844197783,0.9686,4241.4,4240.8,0.001]
[1754844197960,0.9686,4241.4,4240.8,2.35903332]
[1754844198195,2.35768279,4241.5,4241.3,0.1176]
[1754844198690,0.55,4241.5,4241.3,0.1176]
[1754844198995,0.9686,4241.4,4241.3,0.1176]
[1754844200302,1.12046,4241.4,4241.3,0.1176]
[1754844200593,3.32631207,4241.4,4241.3,0.1176]
[1754844200992,3.87631207,4241.4,4241.3,0.1176]
[1754844204010,1.5186,4241.4,4241.3,0.1176]
[1754844204502,3.87631207,4241.4,4241.3,0.1176]
[1754844209714,3.87631207,4241.4,4240.8,0.001]
[1754844209715,0.55,4241.1,4240.8,0.001]
[1754844210015,2.35799004,4240.9,4240.8,0.001]
[1754844210172,5.97193449,4241.0,4240.8,0.001]
[1754844210377,5.97193449,4241.0,4240.8,0.1186]
[1754844210378,3.32659004,4240.9,4240.8,0.1186]
[1754844211106,3.87659004,4240.9,4240.8,0.1186]
[1754844213276,1.5186,4240.9,4240.8,0.1186]
[1754844213472,3.87659004,4240.9,4240.8,0.1186]
[1754844216577,4.86143817,4240.9,4240.8,0.001]
[1754844217407,11.60415996,4240.9,4240.8,0.001]
[1754844217575,11.72175996,4240.9,4240.8,0.001]
[1754844218897,41.94199411,4240.9,4240.8,0.001]
[1754844219983,42.44945284,4240.9,4240.8,0.001]
[1754844221506,42.44945284,4240.9,4240.8,1e-08]
[1754844222109,2.90821247,4240.5,4240.4,0.001]
[1754844222415,40.68668164,4240.5,4240.4,0.001]
[1754844222719,42.16265085,4240.5,4240.4,0.001]
[1754844223417,38.54865085,4240.5,4240.4,0.001]
[1754844223617,40.13668164,4240.5,4240.4,0.001]
[1754844223793,40.35954662,4240.5,4240.4,0.001]
[1754844224718,40.82864662,4240.5,4240.4,0.001]
[1754844225746,6.7316,4240.5,4240.4,0.001]
[1754844226041,6.7316,4240.5,4240.4,0.4338]
[1754844226042,6.614,4240.5,4240.4,0.4338]
[1754844226186,6.614,4240.5,4240.4,0.5514]
[1754844226827,6.614,4240.5,4240.4,0.1186]
[1754844227601,9.52221247,4240.5,4240.4,0.1186]
[1754844227920,7.164,4240.5,4240.4,0.1186]
[1754844228126,9.52221247,4240.5,4240.4,0.1186]
[1754844228491,11.20755406,4240.5,4240.4,0.1186]
[1754844229197,9.97431247,4240.5,4240.4,0.1186]
[1754844229518,9.52221247,4240.5,4240.4,0.1186]
[1754844230823,9.97431247,4240.5,4240.4,0.1186]
[1754844231621,10.41641247,4240.5,4240.4,0.1186]
[1754844232188,10.41641247,4240.5,4240.4,0.001]
[1754844232600,12.06813729,4240.5,4240.4,0.001]
[1754844232923,12.28859566,4240.5,4240.4,0.001]
[1754844233529,42.28859566,4240.5,4240.4,0.001]
[1754844233898,42.79659478,4240.5,4240.4,0.001]
[1754844235001,11.90239478,4240.5,4240.4,0.001]
[1754844235328,10.19477084,4240.5,4240.4,0.001]
[1754844235529,10.63687084,4240.5,4240.4,0.001]
[1754844235728,11.14485705,4240.5,4240.4,0.001]
[1754844236236,11.14485502,4240.5,4240.4,0.001]
[1754844237699,12.51903988,4240.5,4240.4,0.001]
[1754844237995,9.74167084,4240.5,4240.4,0.001]
[1754844238915,9.74175324,4240.5,4240.4,0.001]
[1754844239641,10.19385324,4240.5,4240.4,0.001]
[1754844241038,10.19393247,4240.5,4240.4,0.001]
[1754844242838,11.14448801,4240.5,4240.4,0.001]
[1754844243136,11.99825267,4240.5,4240.4,0.001]
[1754844243335,12.50677417,4240.5,4240.4,0.001]
[1754844243547,42.50677417,4240.5,4240.4,0.001]
[1754844248254,43.14104311,4240.5,4240.4,0.001]
[1754844248436,42.50677417,4240.5,4240.4,0.001]
[1754844248839,43.14104311,4240.5,4240.4,0.001]
[1754844249243,42.62528792,4240.5,4240.4,0.001]
[1754844250041,43.25955686,4240.5,4240.4,0.001]
[1754844253651,41.73017417,4240.5,4240.4,0.001]
[1754844253840,42.18227417,4240.5,4240.4,0.001]
[1754844254358,42.62437417,4240.5,4240.4,0.001]
[1754844254524,43.25864311,4240.5,4240.4,0.001]
[1754844254726,50.42864311,4240.5,4240.4,0.001]
[1754844256066,49.79437417,4240.5,4240.4,0.001]
[1754844256840,50.43054213,4240.5,4240.4,0.001]
[1754844257043,49.79437417,4240.5,4240.4,0.001]
[1754844257372,5.90843494,4240.1,4240.0,0.001]
[1754844257579,43.99229823,4240.1,4240.0,0.001]
[1754844257737,45.20271925,4240.1,4240.0,0.001]
[1754844257934,45.01069823,4240.1,4240.0,0.001]
[1754844258171,5.90849056,4240.0,4239.9,0.001]
[1754844258475,38.90065226,4240.0,4239.9,0.001]
[1754844260068,2.90865745,4239.7,4238.9,0.4414]
[1754844260266,39.85887745,4239.7,4238.6,0.1576]
[1754844260459,40.36739895,4239.7,4238.6,0.599]
[1754844260766,43.32493694,4239.7,4238.6,0.599]
[1754844260958,43.32493694,4239.7,4238.6,0.1576]
[1754844261161,43.32493694,4239.7,4238.8,0.4414]
[1754844261362,43.96122556,4239.7,4238.8,0.4414]
[1754844261542,43.32516514,4239.7,4238.8,0.4414]
[1754844262369,42.88096514,4239.7,4239.4,0.001]
[1754844262671,6.20562715,4239.7,4239.6,0.4814]
[1754844262872,9.70002715,4239.7,4239.6,0.4814]
[1754844263259,9.74150565,4239.7,4239.6,0.4814]
[1754844264144,9.74139649,4239.7,4239.6,0.4814]
[1754844265265,7.38273904,4239.7,4239.6,0.4814]
[1754844265958,9.74139649,4239.7,4239.6,0.4814]
[1754844266159,7.38273904,4239.7,4239.6,0.4814]
[1754844268745,9.74139649,4239.7,4239.6,0.4814]
[1754844269174,7.38273904,4239.7,4239.6,0.4814]
[1754844270270,7.38273904,4239.7,4239.6,0.04]
[1754844270271,9.74139649,4239.7,4239.6,0.04]
[1754844272647,10.64219649,4239.7,4239.6,0.04]
[1754844272847,11.94227128,4239.7,4239.6,0.04]
[1754844273182,11.49807128,4239.7,4239.6,0.04]
[1754844273753,11.04147128,4239.7,4239.6,0.04]
[1754844273954,9.74139649,4239.7,4239.6,0.04]
[1754844274855,10.19799649,4239.7,4239.6,0.04]
[1754844275349,9.74139649,4239.7,4239.6,0.04]
[1754844276684,10.70706578,4239.7,4239.6,0.04]
[1754844278982,10.70706578,4239.7,4239.6,0.041]
[1754844279176,10.25046578,4239.7,4239.6,0.041]
[1754844279890,7.38273904,4239.7,4239.6,0.041]
[1754844280066,7.38273904,4239.7,4239.6,0.4824]
[1754844282756,9.74139649,4239.7,4239.6,0.041]
[1754844282958,7.38273904,4239.7,4239.6,0.041]
[1754844284573,9.74163738,4239.7,4239.6,0.041]
[1754844284758,11.46567729,4239.7,4239.6,0.041]
[1754844284982,42.41904783,4239.7,4239.6,0.041]
[1754844285771,41.97484783,4239.7,4239.6,0.041]
[1754844286966,42.41904783,4239.7,4239.6,0.041]
[1754844291700,42.53664783,4239.7,4239.6,0.041]
[1754844292205,43.17239443,4239.7,4239.6,0.041]
[1754844292705,42.53664783,4239.7,4239.6,0.041]
[1754844293084,43.51701506,4239.7,4239.6,0.041]
[1754844293304,43.38451354,4239.7,4239.6,0.041]
[1754844293503,42.53686388,4239.7,4239.6,0.041]
[1754844296094,5.90871308,4239.6,4239.5,0.001]
[1754844296423,5.90871308,4239.6,4239.4,0.001]
[1754844296424,15.90876872,4239.5,4239.4,0.001]
[1754844296618,40.88448991,4239.5,4239.4,0.001]
[1754844296952,41.79488991,4239.5,4239.4,0.001]
[1754844297422,42.13531266,4239.5,4239.4,0.001]
[1754844299431,41.49895799,4239.5,4239.4,0.001]
[1754844299723,42.7663979,4239.5,4239.4,0.001]
[1754844299895,43.40275257,4239.5,4239.4,0.001]
[1754844300495,42.3261979,4239.5,4239.4,0.001]
[1754844300706,43.40275257,4239.5,4239.4,0.001]
[1754844301699,42.7663979,4239.5,4239.4,0.001]
[1754844303848,38.2469979,4239.5,4239.4,0.001]
[1754844304141,6.42955799,4239.5,4239.4,0.001]
[1754844304348,9.64698745,4239.5,4239.4,0.4362]
[1754844304495,7.83821873,4239.5,4239.4,0.4362]
[1754844304701,4.28821873,4239.5,4239.4,0.4362]
[1754844304904,4.17061873,4239.5,4239.4,0.4362]
[1754844305202,9.52938745,4239.5,4239.4,0.001]
[1754844305412,43.27210924,4239.5,4239.4,0.001]
[1754844305620,43.82210924,4239.5,4239.4,0.001]
[1754844305826,43.93970924,4239.5,4239.4,0.001]
[1754844306429,44.40990924,4239.5,4239.4,0.001]
[1754844306730,47.67585885,4239.5,4239.4,0.001]
[1754844310250,43.02173706,4239.5,4239.4,0.001]
[1754844310433,40.70469638,4239.5,4239.4,0.001]
[1754844311240,14.26669638,4239.5,4239.4,0.001]
[1754844311443,17.87469638,4239.5,4239.4,0.4362]
[1754844312527,11.33961873,4239.5,4239.4,0.4362]
[1754844312835,14.33961873,4239.5,4239.4,0.4362]
[1754844313544,14.88961873,4239.5,4239.4,0.4362]
[1754844314148,17.24838745,4239.5,4239.4,0.4362]
[1754844316728,14.88961873,4239.5,4239.4,0.4362]
[1754844317450,11.28161873,4239.5,4239.4,0.4362]